bitfinex-derivatives/quotes_SOLF0:USTF0_20250323
["timestamp","ask_amount","ask_price","bid_price","bid_amount"]
[1742756542590,9.87028817,130.79,130.77,0.05093442]
[1742756542983,9.87028817,130.79,130.77,7.69893442]
[1742756543285,36.85028817,130.78,130.77,0.05093442]
[1742756544090,36.85028817,130.78,130.73,10.43573956]
[1742756544289,9.87028817,130.74,130.73,10.43573956]
[1742756544489,44.50038817,130.74,130.73,10.43573956]
[1742756544992,36.85028817,130.74,130.72,41.74295824]
[1742756545184,9.87028817,130.73,130.72,41.7968708]
[1742756547388,17.52098817,130.73,130.72,41.7968708]
[1742756547590,9.87028817,130.73,130.71,83.48591648]
[1742756547790,9.87028817,130.72,130.71,83.48591648]
[1742756549798,9.87028817,130.72,130.7,0.04451065]
[1742756550098,36.87028817,130.71,130.7,0.04451065]
[1742756550290,36.87028817,130.71,130.69,7.6527]
[1742756550495,36.87028817,130.71,130.69,0.04451065]
[1742756550695,9.87028817,130.7,130.69,0.04451065]
[1742756551896,17.52268817,130.7,130.69,0.04451065]
[1742756552103,9.87028817,130.7,130.69,0.04451065]
[1742756555995,17.52268817,130.7,130.69,0.04451065]
[1742756556201,17.52268817,130.7,130.64,11.87988817]
[1742756556504,9.87028817,130.68,130.64,11.87988817]
[1742756556707,36.87028817,130.67,130.63,9.87028817]
[1742756557005,27.0,130.66,130.63,9.87028817]
[1742756557206,27.0,130.66,130.65,7.6554]
[1742756557408,27.05150785,130.66,130.65,7.6554]
[1742756558306,27.0,130.67,130.66,7.6548]
[1742756558503,27.0,130.67,130.66,17.52508817]
[1742756563410,27.0,130.67,130.66,7.6548]
[1742756565721,27.0,130.67,130.66,17.52508817]
[1742756566920,27.0,130.67,130.66,7.6548]
[1742756568020,27.0,130.67,130.66,17.52508817]
[1742756568718,0.05702089,130.68,130.67,7.6542]
[1742756569426,0.05702089,130.68,130.67,17.52448817]
[1742756570620,359.0,130.74,130.7,7.6524]
[1742756570824,36.87028817,130.73,130.69,9.87028817]
[1742756571024,36.87028817,130.73,130.7,9.87028817]
[1742756571422,359.0,130.74,130.71,9.87028817]
[1742756571631,27.0,130.73,130.72,9.87028817]
[1742756572021,27.0,130.73,130.72,17.52108817]
[1742756575227,27.0,130.73,130.72,7.6508]
[1742756578131,0.05452488,130.74,130.72,7.6508]
[1742756578335,27.05452488,130.74,130.71,9.91998485]
[1742756578826,27.05452488,130.74,130.73,7.6507]
[1742756585329,36.92481305,130.74,130.72,7.651]
[1742756587837,36.92481305,130.74,130.73,7.6507]
[1742756588041,27.05452488,130.74,130.73,7.6507]
[1742756593844,0.05452488,130.74,130.73,17.52098817]
[1742756594147,359.0,130.79,130.73,36.87028817]
[1742756594148,386.0,130.79,130.73,36.87028817]
[1742756594343,36.87028817,130.79,130.75,9.87028817]
[1742756594545,9.87028817,130.78,130.75,9.87028817]
[1742756594745,9.87028817,130.78,130.76,7.6486]
[1742756594941,36.87028817,130.78,130.76,7.6486]
[1742756595146,36.92552859,130.78,130.76,7.70351302]
[1742756597152,9.87028817,130.77,130.76,0.05491302]
[1742756597654,9.87028817,130.77,130.7,5.9895]
[1742756597853,9.87028817,130.72,130.68,9.87028817]
[1742756598052,9.87028817,130.71,130.65,117.46583682]
[1742756598248,9.87028817,130.69,130.66,9.87028817]
[1742756598456,36.85028817,130.69,130.66,9.87028817]
[1742756598753,9.87028817,130.68,130.66,0.05096841]
[1742756598949,9.87028817,130.67,130.66,0.05096841]
[1742756599348,17.52448817,130.67,130.66,0.05096841]
[1742756600755,7.6552,130.66,130.62,7.6569]
[1742756600957,302.09215927,130.73,130.6,9.87028817]
[1742756600958,9.87028817,130.64,130.6,9.87028817]
[1742756601147,9.87028817,130.63,130.59,49.38360851]
[1742756601345,27.0,130.62,130.59,41.72510851]
[1742756601549,27.0,130.62,130.6,9.87028817]
[1742756601859,27.05754197,130.62,130.6,9.87028817]
[1742756602559,27.05754197,130.62,130.61,7.6577]
[1742756604055,27.05754197,130.62,130.6,17.52838817]
[1742756604253,0.05754197,130.62,130.6,17.52838817]
[1742756604453,27.05754197,130.62,130.6,17.52838817]
[1742756605956,27.05754197,130.62,130.61,7.6577]
[1742756606255,27.05754197,130.62,130.59,0.0494797]
[1742756606456,27.05754197,130.62,130.6,7.6578]
[1742756606853,27.05754197,130.62,130.59,9.91976787]
[1742756607060,27.05754197,130.62,130.61,17.52798817]
[1742756607661,0.05754197,130.62,130.61,17.52798817]
[1742756608257,0.05754197,130.62,130.61,7.6577]
[1742756608856,0.05754197,130.62,130.61,17.52798817]
[1742756611560,27.0,130.66,130.63,9.87028817]
[1742756611760,27.0,130.67,130.64,9.87028817]
[1742756612155,27.0,130.67,130.65,9.87028817]
[1742756612359,27.0,130.68,130.65,9.87028817]
[1742756612665,0.04968704,130.67,130.66,7.6544]
[1742756615074,9.91997521,130.67,130.65,0.04876102]
[1742756615373,9.87028817,130.66,130.65,0.04876102]
[1742756617573,9.91997521,130.67,130.65,7.70416102]
[1742756617874,9.91997521,130.67,130.65,0.04876102]
[1742756618075,9.91997521,130.67,130.66,7.6548]
[1742756618278,0.04968704,130.67,130.66,7.6548]
[1742756623383,359.0,130.71,130.66,9.87028817]
[1742756623580,27.0,130.71,130.67,9.87028817]
[1742756623877,9.87028817,130.72,130.7,7.6521]
[1742756624082,36.87028817,130.72,130.7,7.6521]
[1742756624383,36.87028817,130.72,130.68,9.87028817]
[1742756624587,27.05469033,130.72,130.71,7.6519]
[1742756624783,27.05469033,130.72,130.71,17.52218817]
[1742756624979,0.05469033,130.72,130.71,17.52218817]
[1742756626583,368.87028817,130.76,130.74,7.65]
[1742756626785,9.87028817,130.76,130.74,7.65]
[1742756627882,9.87028817,130.75,130.74,0.05460004]
[1742756628083,17.51978817,130.75,130.74,0.05460004]
[1742756629180,9.87028817,130.75,130.74,0.05460004]
[1742756630786,9.92781799,130.76,130.74,0.05460004]
[1742756630985,0.05752982,130.76,130.74,0.05460004]
[1742756632285,0.05752982,130.76,130.74,7.70440004]
[1742756632587,0.05752982,130.76,130.74,0.05460004]
[1742756632989,0.05752982,130.76,130.75,7.6495]
[1742756634893,0.05752982,130.76,130.75,17.51978817]
[1742756635486,27.0,130.79,130.77,7.6479]
[1742756635883,36.87028817,130.79,130.77,7.6479]
[1742756636493,36.92709425,130.79,130.77,7.69628001]
[1742756637089,0.05680608,130.79,130.78,7.6478]
[1742756637492,0.05680608,130.79,130.78,17.51808817]
[1742756637693,9.87028817,130.82,130.8,7.6463]
[1742756637897,36.85028817,130.82,130.8,7.6463]
[1742756638794,27.03202842,130.82,130.81,7.646]
[1742756641595,27.03202842,130.82,130.8,7.69826857]
[1742756641795,9.87028817,130.81,130.8,0.05196857]
[1742756644300,9.87028817,130.81,130.8,7.69856857]
[1742756645699,36.90231659,130.82,130.8,7.69856857]
[1742756649201,36.90231659,130.82,130.81,7.646]
[1742756651905,36.90231659,130.82,130.8,7.69826857]
[1742756652105,36.90231659,130.82,130.8,0.05196857]
[1742756652503,36.90231659,130.82,130.8,7.69836857]
[1742756657809,36.90231659,130.82,130.8,0.05196857]
[1742756658408,44.54781659,130.82,130.8,0.05196857]
[1742756658710,36.90231659,130.82,130.8,0.05196857]
[1742756659004,0.05202842,130.82,130.81,7.646]
[1742756659208,26.98,130.88,130.81,9.87028817]
[1742756659408,26.98,130.88,130.83,9.87028817]
[1742756659707,26.98,130.88,130.86,7.6429]
[1742756660098,26.98,130.88,130.85,9.87028817]
[1742756660304,27.03553903,130.88,130.86,0.05137684]
[1742756660907,27.03553903,130.88,130.86,7.69417684]
[1742756661106,36.9058272,130.88,130.86,7.69417684]
[1742756661307,9.9258272,130.88,130.86,0.05137684]
[1742756662208,9.9258272,130.88,130.86,7.69437684]
[1742756665409,9.9258272,130.88,130.86,0.05137684]
[1742756665811,36.83028817,130.87,130.86,0.05137684]
[1742756666008,36.83028817,130.87,130.82,7.6453]
[1742756666207,9.87028817,130.85,130.82,7.6453]
[1742756666512,26.96,130.84,130.82,7.6453]
[1742756667312,27.01386303,130.84,130.82,7.70289163]
[1742756670013,44.5287512,130.84,130.82,0.05759163]
[1742756670210,9.87028817,130.83,130.82,0.05759163]
[1742756670406,9.87028817,130.83,130.77,263.72]
[1742756670608,9.87028817,130.8,130.76,9.87028817]
[1742756670809,26.96,130.8,130.76,9.87028817]
[1742756671611,0.05091375,130.79,130.78,7.6478]
[1742756675316,0.05091375,130.79,130.77,17.57188092]
[1742756675920,0.05091375,130.79,130.78,7.6478]
[1742756679219,0.05091375,130.79,130.78,17.51808817]
[1742756680123,36.83028817,130.82,130.8,7.6464]
[1742756681218,36.88149585,130.82,130.8,7.69623761]
[1742756683622,9.87028817,130.81,130.8,7.69623761]
[1742756683821,36.88149585,130.82,130.81,7.646]
[1742756684024,27.01120768,130.82,130.81,7.646]
[1742756684924,36.88149585,130.82,130.8,7.69613761]
[1742756685224,36.88149585,130.82,130.8,0.04983761]
[1742756685420,9.87028817,130.81,130.8,0.04983761]
[1742756686525,17.51628817,130.81,130.8,0.04983761]
[1742756686923,7.6472,130.79,130.76,7.6488]
[1742756687122,36.83028817,130.78,130.76,7.6488]
[1742756687825,26.96,130.78,130.77,7.6483]
[1742756688020,26.96,130.78,130.77,17.51858817]
[1742756688217,0.05537777,130.79,130.77,9.87028817]
[1742756688422,0.05537777,130.79,130.78,17.51808817]
[1742756693329,0.05537777,130.79,130.78,7.6478]
[1742756698231,0.05537777,130.79,130.77,7.6479]
[1742756700640,9.92566594,130.79,130.77,7.6479]
[1742756700842,17.57296594,130.79,130.76,17.56992175]
[1742756702746,0.05537777,130.79,130.76,9.92132175]
[1742756703344,0.05537777,130.79,130.77,9.87028817]
[1742756704146,0.05537777,130.79,130.78,7.6478]
[1742756706744,9.92566594,130.79,130.76,9.92132175]
[1742756707450,0.05537777,130.79,130.77,7.6481]
[1742756707651,359.0,130.85,130.78,9.87028817]
[1742756707852,36.85028817,130.84,130.81,9.87028817]
[1742756708047,36.85028817,130.84,130.8,17.51658817]
[1742756708048,44.49498817,130.84,130.8,17.51658817]
[1742756708649,9.87028817,130.83,130.8,7.6463]
[1742756708852,9.92482761,130.83,130.81,0.05162223]
[1742756709053,9.87028817,130.82,130.81,0.05162223]
[1742756709656,17.51568817,130.82,130.81,0.05162223]
[1742756713652,7.6454,130.82,130.81,0.05162223]
[1742756713858,0.05453944,130.83,130.81,0.05162223]
[1742756714151,0.05453944,130.83,130.81,9.9219104]
[1742756714459,0.05453944,130.83,130.82,7.6454]
[1742756715457,0.05453944,130.83,130.81,17.5676104]
[1742756715657,0.05453944,130.83,130.81,7.69732223]
[1742756717061,0.05453944,130.83,130.82,7.6454]
[1742756718050,0.05453944,130.83,130.81,7.69732223]
[1742756718657,0.05453944,130.83,130.82,7.6454]
[1742756720457,0.05453944,130.83,130.81,7.69742223]
[1742756723563,0.05453944,130.83,130.81,0.05162223]
[1742756723965,9.92482761,130.83,130.81,0.05162223]
[1742756724665,9.92482761,130.83,130.81,7.69762223]
[1742756725463,9.92482761,130.83,130.81,0.05162223]
[1742756725766,36.83028817,130.82,130.81,0.05162223]
[1742756727467,44.47568817,130.82,130.81,0.05162223]
[1742756743782,36.83028817,130.82,130.81,0.05162223]
[1742756745486,44.47568817,130.82,130.81,0.05162223]
[1742756746088,26.96,130.82,130.81,0.05162223]
[1742756750596,44.52982761,130.83,130.81,0.05162223]
[1742756751499,36.88482761,130.83,130.81,7.69762223]
[1742756751797,36.88482761,130.83,130.81,0.05162223]
[1742756752096,44.53002761,130.83,130.81,0.05162223]
[1742756752297,36.88482761,130.83,130.81,0.05162223]
[1742756752698,27.01453944,130.83,130.81,0.05162223]
[1742756752896,27.01453944,130.83,130.81,9.9219104]
[1742756753295,0.05453944,130.83,130.81,17.5675104]
[1742756755190,0.05453944,130.83,130.82,7.6454]
[1742756757603,0.05453944,130.83,130.81,17.5676104]
[1742756758304,0.05453944,130.83,130.82,7.6454]
[1742756758603,368.87028817,130.86,130.82,9.87028817]
[1742756758805,395.83028817,130.86,130.83,9.87028817]
[1742756759102,36.83028817,130.86,130.84,7.6442]
[1742756759303,26.96,130.86,130.84,7.6442]
[1742756759695,27.01132041,130.86,130.84,7.70011023]
[1742756760302,27.01132041,130.86,130.84,0.05591023]
[1742756761708,36.88160858,130.86,130.84,0.05591023]
[1742756762908,0.05132041,130.86,130.84,0.05591023]
[1742756763305,0.05132041,130.86,130.84,9.9261984]
[1742756764005,0.05132041,130.86,130.85,7.6437]
[1742756764309,0.05132041,130.86,130.84,0.05591023]
[1742756764310,9.92160858,130.86,130.84,0.05591023]
[1742756764509,9.87028817,130.85,130.84,0.05591023]
[1742756765108,9.92160858,130.86,130.84,0.05591023]
[1742756768009,17.51398817,130.85,130.84,0.05591023]
[1742756774022,7.646,130.81,130.8,2.0258]
[1742756774222,9.87028817,130.81,130.77,11.87088817]
[1742756774516,26.96,130.82,130.77,2.0006]
[1742756774517,9.87028817,130.79,130.77,2.0006]
[1742756775020,44.47798817,130.79,130.77,2.0006]
[1742756775214,44.52727725,130.79,130.77,2.05030855]
[1742756776722,36.87957725,130.79,130.77,2.05030855]
[1742756776926,27.00928908,130.79,130.77,11.92059672]
[1742756777327,27.00928908,130.79,130.77,19.56889672]
[1742756778730,0.04928908,130.79,130.77,19.56889672]
[1742756780624,0.04928908,130.79,130.77,11.92059672]
[1742756781332,0.04928908,130.79,130.77,19.56889672]
[1742756785432,0.04928908,130.79,130.77,11.92059672]
[1742756786134,17.56687725,130.79,130.77,2.05030855]
[1742756787937,17.56687725,130.79,130.77,11.92059672]
[1742756788229,9.91957725,130.79,130.77,11.92059672]
[1742756788436,0.04928908,130.79,130.77,11.92059672]
[1742756789837,0.04928908,130.79,130.77,19.56889672]
[1742756797650,9.91957725,130.79,130.77,11.92059672]
[1742756798144,9.91957725,130.79,130.77,19.56879672]
[1742756798346,9.91957725,130.79,130.77,9.69850855]
[1742756800138,0.04928908,130.79,130.77,9.69850855]
[1742756801539,0.04928908,130.79,130.78,7.6478]
[1742756803745,0.04928908,130.79,130.77,19.56859672]
[1742756803946,9.91957725,130.79,130.77,9.69830855]
[1742756805049,9.87028817,130.78,130.77,0.04970855]
[1742756806449,17.51808817,130.78,130.77,0.04970855]
[1742756808253,9.87028817,130.78,130.77,0.04970855]
[1742756810055,0.04928908,130.79,130.77,0.04970855]
[1742756810260,0.04928908,130.79,130.77,9.91999672]
[1742756810560,0.04928908,130.79,130.78,7.6478]
[1742756811159,0.04928908,130.79,130.77,7.69780855]
[1742756811963,9.87028817,130.78,130.77,0.04970855]
[1742756812651,17.51808817,130.78,130.77,0.04970855]
[1742756813966,17.51988817,130.75,130.72,2.1394]
[1742756814259,9.87028817,130.74,130.7,54.36551117]
[1742756814652,9.87028817,130.74,130.71,9.87028817]
[1742756814964,26.96,130.75,130.72,9.87028817]
[1742756815263,26.96,130.75,130.74,7.6501]
[1742756815462,27.01038186,130.75,130.74,7.6501]
[1742756817266,27.01038186,130.75,130.73,7.6504]
[1742756818167,36.88067003,130.75,130.73,7.6504]
[1742756818364,27.01038186,130.75,130.73,7.6504]
[1742756822362,36.88067003,130.75,130.72,7.6511]
[1742756822568,44.53037003,130.75,130.71,9.92710499]
[1742756822767,9.87028817,130.74,130.71,0.05681682]
[1742756823468,9.87028817,130.74,130.71,7.70831682]
[1742756823670,9.87028817,130.74,130.71,0.05681682]
[1742756824467,9.87028817,130.74,130.72,7.6512]
[1742756825468,9.87028817,130.74,130.73,7.6507]
[1742756826571,36.88067003,130.75,130.74,7.6501]
[1742756826771,27.01038186,130.75,130.74,7.6501]
[1742756827362,27.01038186,130.75,130.73,7.6505]
[1742756827872,36.88067003,130.75,130.72,7.651]
[1742756828570,27.01038186,130.75,130.73,7.6506]
[1742756832775,0.05038186,130.75,130.73,7.6506]
[1742756835380,0.05038186,130.75,130.74,7.6501]
[1742756835883,0.05038186,130.75,130.73,7.6504]
[1742756836586,0.05038186,130.75,130.73,9.87028817]
[1742756836777,359.0,130.79,130.74,9.87028817]
[1742756836980,359.0,130.79,130.75,9.87028817]
[1742756836981,368.87028817,130.79,130.75,9.87028817]
[1742756837277,376.51798817,130.79,130.75,17.51948817]
[1742756837875,0.05440369,130.78,130.77,9.87028817]
[1742756838286,0.05440369,130.78,130.77,17.51858817]
[1742756839280,0.05440369,130.78,130.77,7.6483]
[1742756841376,0.05440369,130.78,130.76,17.57677097]
[1742756841581,9.92469186,130.78,130.76,0.0577828]
[1742756842082,17.57259186,130.78,130.76,0.0577828]
[1742756842790,9.92469186,130.78,130.76,0.0577828]
[1742756843183,9.92469186,130.78,130.76,7.7065828]
[1742756844393,0.05440369,130.78,130.76,7.7065828]
[1742756844691,0.05440369,130.78,130.77,7.6483]
[1742756844886,36.83028817,130.8,130.76,9.92807097]
[1742756845094,36.83028817,130.8,130.77,7.6482]
[1742756845390,36.83028817,130.8,130.76,9.92807097]
[1742756845888,44.47688817,130.8,130.77,7.648]
[1742756846091,0.05843728,130.79,130.77,7.648]
[1742756850190,9.92872545,130.79,130.77,7.648]
[1742756854399,0.05843728,130.79,130.77,17.51828817]
[1742756854596,0.05843728,130.79,130.77,7.648]
[1742756854789,9.92872545,130.79,130.77,7.648]
[1742756855493,9.87028817,130.83,130.78,9.87028817]
[1742756855685,36.83028817,130.83,130.79,9.87028817]
[1742756856091,9.87028817,130.83,130.79,9.87028817]
[1742756856592,0.04812883,130.82,130.81,7.6457]
[1742756867303,9.87028817,130.86,130.81,9.87028817]
[1742756867503,9.87028817,130.86,130.82,9.87028817]
[1742756868005,9.87028817,130.86,130.84,7.6437]
[1742756868703,9.92039624,130.86,130.84,7.70028738]
[1742756873210,9.92039624,130.86,130.84,0.05658738]
[1742756873211,17.56359624,130.86,130.84,0.05658738]
[1742756874602,9.92039624,130.86,130.84,0.05658738]
[1742756874806,9.92039624,130.86,130.84,7.70078738]
[1742756877410,9.92039624,130.86,130.84,7.70058738]
[1742756879611,0.05010807,130.86,130.85,7.6437]
[1742756879814,0.05010807,130.86,130.85,17.51398817]
[1742756880016,26.94,130.89,130.85,9.87028817]
[1742756880315,26.94,130.89,130.84,26.99658738]
[1742756880316,26.94,130.89,130.87,7.6422]
[1742756881217,26.99519222,130.89,130.87,7.69705191]
[1742756881516,26.99519222,130.89,130.87,0.05485191]
[1742756884918,7.69649222,130.89,130.87,0.05485191]
[1742756885818,0.05519222,130.89,130.87,7.69725191]
[1742756886016,0.05519222,130.89,130.87,0.05485191]
[1742756886819,0.05519222,130.89,130.87,7.69705191]
[1742756887920,0.05519222,130.89,130.87,0.05485191]
[1742756889321,0.05519222,130.89,130.87,7.69715191]
[1742756889822,0.05519222,130.89,130.87,0.05485191]
[1742756890521,0.05519222,130.89,130.87,9.92514008]
[1742756890720,0.05519222,130.89,130.88,7.6419]
[1742756892924,359.0,130.94,130.88,9.87028817]
[1742756893129,36.81028817,130.94,130.9,9.87028817]
[1742756893622,9.87028817,130.95,130.92,7.6391]
[1742756894211,0.05285468,130.95,130.93,17.50908817]
[1742756895527,0.05285468,130.95,130.93,9.87028817]
[1742756896426,0.05285468,130.95,130.92,9.92816357]
[1742756896623,9.92314285,130.95,130.92,0.0578754]
[1742756896823,7.6386,130.94,130.92,0.0578754]
[1742756897128,9.87028817,130.93,130.92,0.0578754]
[1742756897325,17.50928817,130.93,130.92,0.0578754]
[1742756898529,44.42928817,130.93,130.92,0.0578754]
[1742756904932,34.559,130.93,130.92,0.0578754]
[1742756906031,44.42928817,130.93,130.92,0.0578754]
[1742756908734,34.559,130.93,130.92,0.0578754]
[1742756911935,44.42928817,130.93,130.92,0.0578754]
[1742756916342,34.559,130.93,130.92,0.0578754]
[1742756921437,34.559,130.93,130.86,11.85458817]
[1742756921438,7.6417,130.89,130.86,11.85458817]
[1742756921642,34.5617,130.89,130.86,11.85458817]
[1742756921835,26.92,130.89,130.86,11.85458817]
[1742756922040,7.642,130.88,130.86,11.85458817]
[1742756922535,7.642,130.88,130.85,275.3715]
[1742756922735,7.6426,130.87,130.86,0.05179374]
[1742756922943,17.51288817,130.87,130.86,0.05179374]
[1742756931348,7.6426,130.87,130.86,0.05179374]
[1742756931653,17.56733532,130.88,130.86,0.05179374]
[1742756932151,7.6425,130.87,130.86,0.05179374]
[1742756932749,17.56733532,130.88,130.86,0.05179374]
[1742756934055,17.51278817,130.87,130.86,0.05179374]
[1742756936052,44.43278817,130.87,130.86,0.05179374]
[1742756952865,26.92,130.87,130.86,0.05179374]
[1742756953966,34.5625,130.87,130.86,0.05179374]
[1742756957264,26.92,130.87,130.86,0.05179374]
[1742756958564,0.05484715,130.88,130.86,9.92208191]
[1742756958863,26.92,130.91,130.87,9.87028817]
[1742756959058,26.92,130.91,130.9,7.6407]
[1742756959259,26.92,130.91,130.9,17.51098817]
[1742756959461,393.5593,130.93,130.9,17.51098817]
[1742756959668,403.42958817,130.93,130.9,7.6407]
[1742756959870,7.6397,130.92,130.9,0.05694448]
[1742756960668,17.50998817,130.92,130.9,0.05694448]
[1742756961464,359.0500684,130.93,130.9,9.92723265]
[1742756961666,385.9700684,130.93,130.9,9.92723265]
[1742756962063,385.9700684,130.93,130.91,7.6401]
[1742756962768,385.9700684,130.93,130.9,17.56763265]
[1742756963469,393.6092684,130.93,130.9,17.56763265]
[1742756964169,385.9700684,130.93,130.9,17.56763265]
[1742756964472,26.9700684,130.93,130.9,17.56763265]
[1742756965770,34.6091684,130.93,130.9,17.56763265]
[1742756965973,36.84035657,130.93,130.9,0.05694448]
[1742756967767,44.47975657,130.93,130.9,0.05694448]
[1742756968163,36.84035657,130.93,130.9,7.69744448]
[1742756969572,36.84035657,130.93,130.91,7.6401]
[1742756971374,36.84035657,130.93,130.9,7.69744448]
[1742756973576,36.84035657,130.93,130.91,7.6401]
[1742756974329,26.9700684,130.93,130.92,7.6396]
[1742756974673,0.0500684,130.93,130.92,7.6396]
[1742756974874,0.0500684,130.93,130.92,17.50988817]
[1742756975273,26.92,130.95,130.94,7.6384]
[1742756975476,26.92,130.96,130.94,7.6384]
[1742756975879,26.92,130.96,130.93,17.50898817]
[1742756976279,17.50728817,130.97,130.93,17.50898817]
[1742756976482,36.84610325,130.96,130.93,0.05643161]
[1742756977381,36.84610325,130.96,130.94,7.6383]
[1742756977685,44.48350325,130.96,130.93,0.05643161]
[1742756978078,36.84610325,130.96,130.93,7.69513161]
[1742756979684,36.84610325,130.96,130.94,7.6384]
[1742756981585,44.48340325,130.96,130.93,7.69523161]
[1742756982188,36.84610325,130.96,130.93,7.69523161]
[1742756982382,36.84610325,130.96,130.94,7.6383]
[1742756982583,26.97581508,130.96,130.93,9.92671978]
[1742756982782,0.05581508,130.96,130.93,9.92671978]
[1742756983088,0.05581508,130.96,130.94,7.6381]
[1742756988096,0.05581508,130.96,130.95,7.6378]
[1742756990293,0.05581508,130.96,130.94,7.6381]
[1742756990895,0.05581508,130.96,130.93,9.92671978]
[1742756991893,0.05581508,130.96,130.94,7.6381]
[1742756993306,7.69311508,130.96,130.93,17.56541978]
[1742756995607,17.56340325,130.96,130.93,0.05643161]
[1742756995902,9.87028817,130.94,130.93,0.05643161]
[1742756996107,36.77028817,130.94,130.93,0.05643161]
[1742756996907,44.40868817,130.94,130.93,0.05643161]
[1742756998411,34.5384,130.94,130.93,0.05643161]
[1742757002015,26.9,130.94,130.93,0.05643161]
[1742757002220,0.05581508,130.96,130.93,9.92671978]
[1742757002413,0.05581508,130.96,130.95,9.87028817]
[1742757003517,0.05581508,130.96,130.94,17.50838817]
[1742757003813,10.59138236,131.02,130.95,9.87028817]
[1742757004012,10.59138236,131.02,131.01,9.87028817]
[1742757005515,10.59138236,131.02,131.01,17.50458817]
[1742757005720,0.85668236,131.02,131.01,17.50458817]
[1742757005921,0.9137368,131.03,131.01,9.87028817]
[1742757006220,0.9137368,131.03,131.02,36.77028817]
[1742757006618,0.9137368,131.03,131.02,44.40398817]
[1742757008023,0.9137368,131.03,131.02,9.87028817]
[1742757009224,0.05705444,131.03,131.02,17.50398817]
[1742757010524,0.05705444,131.03,131.02,9.87028817]
[1742757017227,0.05705444,131.03,131.02,17.50398817]
[1742757018424,0.05705444,131.03,131.02,9.87028817]
[1742757020324,7.69025444,131.03,131.02,9.87028817]
[1742757020518,0.05705444,131.03,131.02,9.87028817]
[1742757030633,0.05705444,131.03,131.02,17.50398817]
[1742757030834,0.05705444,131.03,131.02,9.87028817]
[1742757033237,0.05705444,131.03,131.02,17.50398817]
[1742757036439,0.05705444,131.03,131.02,9.87028817]
[1742757039942,0.05705444,131.03,131.02,17.50398817]
[1742757044442,7.6317,131.06,131.03,7.6327]
[1742757044747,7.6317,131.06,131.05,9.87028817]
[1742757047347,34.5112,131.07,131.05,9.87028817]
[1742757048547,7.6314,131.06,131.05,9.87028817]
[1742757049350,7.6314,131.06,131.04,9.92089076]
[1742757049647,7.632,131.05,131.04,9.92089076]
[1742757052848,7.632,131.05,131.04,0.05060259]
[1742757054949,7.632,131.05,131.04,9.92089076]
[1742757055156,2.9327,131.09,131.04,9.92089076]
[1742757055157,14.99536572,131.12,131.04,9.92089076]
[1742757055344,26.86,131.1,131.08,9.87028817]
[1742757055751,34.4894,131.1,131.08,9.87028817]
[1742757056144,26.86,131.1,131.08,9.87028817]
[1742757057556,26.86,131.1,131.07,0.05157001]
[1742757057557,9.87028817,131.09,131.07,0.05157001]
[1742757057756,31.92797789,131.11,131.08,9.87028817]
[1742757058051,31.92797789,131.11,131.1,9.87028817]
[1742757058256,31.92797789,131.11,131.1,17.49938817]
[1742757058851,26.86,131.12,131.1,17.49938817]
[1742757059051,26.86,131.12,131.11,9.87028817]
[1742757059652,26.86,131.12,131.1,9.92614707]
[1742757059853,7.6285,131.11,131.1,9.92614707]
[1742757060055,390.92797789,131.14,131.1,9.92614707]
[1742757060247,31.92797789,131.14,131.13,9.87028817]
[1742757060756,39.55477789,131.14,131.13,9.87028817]
[1742757061055,39.55477789,131.14,131.12,9.87028817]
[1742757062057,7.6273,131.13,131.11,9.87028817]
[1742757062258,41.79826606,131.14,131.1,9.92614707]
[1742757062455,26.86,131.13,131.1,9.92614707]
[1742757062958,7.628,131.12,131.1,9.92614707]
[1742757066159,7.6285,131.11,131.1,9.92614707]
[1742757067462,7.6282,131.12,131.1,9.92614707]
[1742757067758,7.6282,131.12,131.11,9.87028817]
[1742757070552,26.86,131.13,131.11,9.87028817]
[1742757070760,34.4876,131.13,131.12,9.87028817]
[1742757071658,7.6279,131.12,131.11,9.87028817]
[1742757071860,26.86,131.13,131.1,9.92614707]
[1742757072568,7.6285,131.11,131.1,0.0558589]
[1742757073369,17.49878817,131.11,131.1,0.0558589]
[1742757075469,17.49878817,131.11,131.1,5.89e-05]
[1742757077264,7.6285,131.11,131.1,5.89e-05]
[1742757077472,0.05552331,131.12,131.1,9.87034707]
[1742757077968,7.68372331,131.12,131.1,9.87034707]
[1742757078270,0.05552331,131.12,131.1,9.87034707]
[1742757079869,26.91552331,131.12,131.1,5.89e-05]
[1742757083973,34.54352331,131.12,131.1,5.89e-05]
[1742757084172,9.87028817,131.11,131.1,5.89e-05]
[1742757084372,36.78581148,131.12,131.1,5.89e-05]
[1742757084572,26.91552331,131.12,131.1,5.89e-05]
[1742757085275,34.54372331,131.12,131.1,5.89e-05]